fUST/lending_fUST_20250608
["ID","MTS","AMOUNT","RATE_DAILY","PERIOD"]
[364959653,1749357033704,-442.13223126,0.00019178,2]
[364959654,1749357033717,-440.0,0.00019178,2]
[364959655,1749357033733,-440.0,0.00019178,2]
[364959656,1749357033746,-441.10825144,0.00019178,2]
[364959657,1749357033758,-404.50511132,0.00019178,2]
[364959658,1749357033770,-461.66613861,0.00019178,2]
[364959659,1749357033782,-459.8336578,0.00019178,2]
[364959660,1749357033795,-390.2994988,0.00019178,2]
[364959661,1749357033807,-451.34930576,0.00019178,2]
[364959662,1749357033819,-440.0,0.00019178,2]
[364959663,1749357033831,-440.0,0.00019178,2]
[364959664,1749357033844,-427.45224192,0.00019178,2]
[364959665,1749357033856,-442.42299466,0.00019178,2]
[364959666,1749357033868,-425.61131042,0.00019178,2]
[364959667,1749357033881,-453.02319927,0.00019178,2]
[364959668,1749357033893,-440.0,0.00019178,2]
[364959669,1749357033906,-441.48944009,0.00019178,2]
[364959670,1749357033919,-451.71871482,0.00019178,2]
[364959671,1749357033931,-435.9211085,0.00019178,2]
[364959672,1749357033944,-440.0,0.00019178,2]
[364959673,1749357033956,-389.9709248,0.00019178,2]
[364959674,1749357033968,-440.0,0.00019178,2]
[364959675,1749357033980,-433.15404519,0.00019178,2]
[364959676,1749357033992,-450.01880452,0.00019178,2]
[364959677,1749357034006,-440.0,0.00019178,2]
[364959678,1749357034018,-385.80922952,0.00019178,2]
[364959679,1749357034030,-446.73923514,0.00019178,2]
[364959680,1749357034043,-440.0,0.00019178,2]
[364959681,1749357034055,-292.92230752,0.00019178,2]
[364959682,1749357034067,-445.27921764,0.00019178,2]
[364959683,1749357034079,-440.0,0.00019178,2]
[364959684,1749357034092,-322.17245803,0.00019178,2]
[364959685,1749357034104,-440.0,0.00019178,2]
[364959686,1749357034113,-440.0,0.00019178,2]
[364959687,1749357034123,-151.0,0.00019178,2]
[364959688,1749357034133,-162.504666,0.00019178,2]
[364959689,1749357034143,-440.0,0.00019178,2]
[364959690,1749357034153,-509.1,0.00019178,2]
[364959691,1749357034340,-430.99498076,0.00019178,2]
[364959692,1749357034352,-440.0,0.00019178,2]
[364959693,1749357034362,-151.0,0.00019178,2]
[364959694,1749357034373,-231.181311,0.00019178,2]
[364959695,1749357034384,-431.07709714,0.00019178,2]
[364959696,1749357034394,-436.4251418,0.00019178,2]
[364959697,1749357034403,-518.89633319,0.00019178,2]
[364959698,1749357034413,-440.0,0.00019178,2]
[364959699,1749357034424,-440.0,0.00019178,2]
[364959700,1749357034434,-509.36708824,0.00019178,2]
[364959701,1749357034445,-427.37482695,0.00019178,2]
[364959702,1749357034455,-440.0,0.00019178,2]
[364959703,1749357034465,-450.47454101,0.00019178,2]
[364959704,1749357034476,-440.0,0.00019178,2]
[364959705,1749357034486,-440.0,0.00019178,2]
[364959706,1749357034496,-440.0,0.00019178,2]
[364959707,1749357034506,-440.0,0.00019178,2]
[364959708,1749357034516,-15.75783715,0.00019178,2]
[364959709,1749357034562,-424.24216285,0.00019178,2]
[364959710,1749357034573,-86.47660268,0.00019178,2]
[364959711,1749357034587,-353.52339732,0.00019178,2]
[364959712,1749357034598,-31.29238142,0.00019178,2]
[364959734,1749357038561,-500.0,0.00017999,2]
[364959737,1749357038572,-223.50100219,0.00017999,2]
[364959739,1749357038584,-276.49899781,0.00017999,2]
[364959741,1749357038595,-500.0,0.00017999,2]
[364959743,1749357038605,-160.25912003,0.00017999,2]
[364959745,1749357038614,-76.49794595,0.00019166,2]
[364959747,1749357038627,-728.21856524,0.00019166,2]
[364959749,1749357038636,-573.33154644,0.00019172,2]
[364959751,1749357038645,-573.33154644,0.00019172,2]
[364959753,1749357038655,-573.33154644,0.00019172,2]
[364959755,1749357038665,-573.33154644,0.00019172,2]
[364959757,1749357038676,-408.70761858,0.00019178,2]
[364959760,1749357038685,-440.0,0.00019178,2]
[364959762,1749357038695,-440.0,0.00019178,2]
[364959765,1749357038704,-440.0,0.00019178,2]
[364959767,1749357038715,-440.0,0.00019178,2]
[364959769,1749357038730,-440.0,0.00019178,2]
[364959771,1749357038740,-563.55816515,0.00019178,2]
[364959773,1749357038750,-435.43194541,0.00019178,2]
[364959775,1749357038760,-440.0,0.00019178,2]
[364959776,1749357038770,-431.22295984,0.00019178,2]
[364959778,1749357038780,-441.79040928,0.00019178,2]
[364959781,1749357038790,-440.0,0.00019178,2]
[364959783,1749357038801,-199.12776187,0.00019178,2]
[364959785,1749357038812,-440.0,0.00019178,2]
[364959787,1749357038826,-440.0,0.00019178,2]
[364959789,1749357038836,-94.29163991,0.00019178,2]
[364959792,1749357038853,-323.63368365,0.00019178,2]
[364959794,1749357038863,-440.0,0.00019178,2]
[364959796,1749357038873,-440.0,0.00019178,2]
[364959798,1749357038882,-440.50207368,0.00019178,2]
[364959800,1749357038892,-431.22675755,0.00019178,2]
[364959802,1749357038902,-440.0,0.00019178,2]
[364959804,1749357038912,-432.16893205,0.00019178,2]
[364959806,1749357038921,-484.20649268,0.00019178,2]
[364959808,1749357038931,-505.3714175,0.00019178,2]
[364959810,1749357038941,-440.0,0.00019178,2]
[364959812,1749357038950,-432.91442296,0.00019178,2]
[364959814,1749357038960,-442.98431793,0.00019178,2]
[364959815,1749357038969,-431.43234875,0.00019178,2]
[364959817,1749357038978,-267.17916792,0.00019178,2]
[364959822,1749357039020,-172.82083208,0.00019178,2]
[364959825,1749357039030,-432.53888901,0.00019178,2]
[364959827,1749357039040,-431.52540205,0.00019178,2]
[364959828,1749357039050,-301.95008133,0.00019178,2]
[364959830,1749357039060,-440.0,0.00019178,2]
[364959832,1749357039069,-434.89748932,0.00019178,2]
[364959834,1749357039079,-199.14533658,0.00019178,2]
[364959841,1749357039136,-240.85466342,0.00019178,2]
[364959843,1749357039147,-434.75482404,0.00019178,2]
[364959845,1749357039157,-442.61806185,0.00019178,2]
[364959847,1749357039166,-340.09776076,0.00019178,2]
[364959849,1749357039176,-501.00689422,0.00019178,2]
[364959851,1749357039186,-440.0,0.00019178,2]
[364959853,1749357039196,-440.0,0.00019178,2]
[364959855,1749357039206,-440.0,0.00019178,2]
[364959857,1749357039215,-440.0,0.00019178,2]
[364959859,1749357039226,-440.0,0.00019178,2]
[364959861,1749357039235,-501.05299113,0.00019178,2]
[364959863,1749357039245,-434.53736976,0.00019178,2]
[364959865,1749357039255,-461.63834265,0.00019178,2]
[364959867,1749357039265,-440.0,0.00019178,2]
[364959869,1749357039274,-440.0,0.00019178,2]
[364959871,1749357039284,-440.0,0.00019178,2]
[364959873,1749357039297,-440.0,0.00019178,2]
[364959875,1749357039307,-440.0,0.00019178,2]
[364959877,1749357039318,-440.0,0.00019178,2]
[364959879,1749357039327,-437.67154463,0.00019178,2]
[364959881,1749357039337,-440.0,0.00019178,2]
[364959883,1749357039347,-282.86351609,0.00019178,2]
[364959885,1749357039357,-441.35231562,0.00019178,2]
[364959887,1749357039366,-440.0,0.00019178,2]
[364959889,1749357039377,-440.0,0.00019178,2]
[364959891,1749357039388,-501.28793211,0.00019178,2]
[364959893,1749357039398,-440.0,0.00019178,2]
[364959895,1749357039407,-440.0,0.00019178,2]
[364959897,1749357039417,-440.0,0.00019178,2]
[364959899,1749357039426,-431.0610387,0.00019178,2]
[364959901,1749357039437,-440.0,0.00019178,2]
[364959903,1749357039447,-504.49429281,0.00019178,2]
[364959905,1749357039457,-504.70496106,0.00019178,2]
[364959907,1749357039467,-433.42678687,0.00019178,2]
[364959909,1749357039477,-440.0,0.00019178,2]
[364959911,1749357039488,-441.76157896,0.00019178,2]
[364959913,1749357039498,-161.28205339,0.00019178,2]
[364959915,1749357039508,-440.86722843,0.00019178,2]
[364959917,1749357039518,-440.0,0.00019178,2]
[364959919,1749357039528,-431.75698139,0.00019178,2]
[364959921,1749357039537,-440.0,0.00019178,2]
[364959923,1749357039547,-430.50674771,0.00019178,2]
[364959925,1749357039557,-516.11521121,0.00019178,2]
[364959927,1749357039567,-550.61413823,0.00019178,2]
[364959929,1749357039576,-440.0,0.00019178,2]
[364959931,1749357039586,-440.0,0.00019178,2]
[364959933,1749357039596,-440.0,0.00019178,2]
[364959935,1749357039605,-440.0,0.00019178,2]
[364959937,1749357039615,-458.01766663,0.00019178,2]
[364959939,1749357039625,-431.1121379,0.00019178,2]
[364959941,1749357039635,-440.0,0.00019178,2]
[364959943,1749357039645,-450.49289233,0.00019178,2]
[364959945,1749357039656,-440.0,0.00019178,2]
[364959947,1749357039665,-440.0,0.00019178,2]
[364959949,1749357039675,-440.0,0.00019178,2]
[364959951,1749357039685,-450.47343677,0.00019178,2]
[364959953,1749357039695,-431.35831024,0.00019178,2]
[364959955,1749357039705,-440.0,0.00019178,2]
[364959957,1749357039715,-500.0,0.00019178,2]
[364959959,1749357039725,-440.0,0.00019178,2]
[364959961,1749357039735,-500.0,0.00019178,2]
[364959963,1749357039745,-500.0,0.00019178,2]
[364959965,1749357039755,-580.5120596,0.00019178,2]
[364959967,1749357039765,-440.0,0.00019178,2]
[364959969,1749357039775,-446.24025599,0.00019178,2]
[364959971,1749357039785,-440.0,0.00019178,2]
[364959973,1749357039794,-440.0,0.00019178,2]
[364959975,1749357039803,-277.9268171,0.00019178,2]
[364959977,1749357039813,-382.80178886,0.00019178,2]
[364959979,1749357039823,-154.538901,0.00019178,2]
[364959981,1749357039833,-440.0,0.00019178,2]
[364959983,1749357039843,-450.95301258,0.00019178,2]
[364959985,1749357039854,-353.08751656,0.00019178,2]
[364959988,1749357039873,-440.0,0.00019178,2]
[364959989,1749357039882,-440.0,0.00019178,2]
[364959991,1749357039892,-440.0,0.00019178,2]
[364959993,1749357039902,-440.0,0.00019178,2]
[364959995,1749357039912,-440.0,0.00019178,2]
[364959997,1749357039923,-440.59844708,0.00019178,2]
[364959999,1749357039932,-431.50946242,0.00019178,2]
[364960001,1749357039942,-441.46598816,0.00019178,2]
[364960003,1749357039951,-441.8648452,0.00019178,2]
[364960005,1749357039961,-400.59161972,0.00019178,2]
[364960007,1749357039971,-440.0,0.00019178,2]
[364960009,1749357039980,-250.79019445,0.00019178,2]
[364960012,1749357039993,-431.94017094,0.00019178,2]
[364960013,1749357040002,-448.86431815,0.00019178,2]
[364960015,1749357040012,-433.11506284,0.00019178,2]
[364960017,1749357040021,-441.38770058,0.00019178,2]
[364960019,1749357040030,-500.0,0.00019178,2]
[364960021,1749357040040,-500.0,0.00019178,2]
[364960023,1749357040050,-500.0,0.00019178,2]
[364960025,1749357040059,-440.0,0.00019178,2]
[364960027,1749357040069,-579.37196087,0.00019178,2]
[364960029,1749357040079,-500.0,0.00019178,2]
[364960031,1749357040088,-500.0,0.00019178,2]
[364960033,1749357040098,-280.29351376,0.00019178,2]
[364960035,1749357040108,-523.61073036,0.00019178,2]
[364960037,1749357040118,-440.0,0.00019178,2]
[364960039,1749357040131,-454.3047971,0.00019178,2]
[364960041,1749357040140,-440.0,0.00019178,2]
[364960043,1749357040150,-440.0,0.00019178,2]
[364960046,1749357040161,-440.0,0.00019178,2]
[364960048,1749357040171,-440.0,0.00019178,2]
[364960050,1749357040181,-441.27095255,0.00019178,2]
[364960052,1749357040191,-304.83105405,0.00019178,2]
[364960054,1749357040201,-440.0,0.00019178,2]
[364960055,1749357040211,-441.87527408,0.00019178,2]
[364960057,1749357040220,-442.14683693,0.00019178,2]
[364960060,1749357040230,-448.25070628,0.00019178,2]
[364960062,1749357040240,-391.6084626,0.00019178,2]
[364960064,1749357040250,-433.17335857,0.00019178,2]
[364960066,1749357040260,-440.0,0.00019178,2]
[364960067,1749357040270,-444.83282733,0.00019178,2]
[364960069,1749357040280,-500.0,0.00019178,2]
[364960071,1749357040289,-440.0,0.00019178,2]
[364960073,1749357040299,-500.0,0.00019178,2]
[364960075,1749357040309,-500.0,0.00019178,2]
[364960077,1749357040319,-500.0,0.00019178,2]
[364960079,1749357040330,-500.0,0.00019178,2]
[364960081,1749357040340,-602.37042581,0.00019178,2]
[364960084,1749357040350,-273.3019553,0.00019178,2]
[364960085,1749357040361,-447.97061614,0.00019178,2]
[364960087,1749357040371,-440.0,0.00019178,2]
[364960090,1749357040381,-411.93579145,0.00019178,2]
[364960092,1749357040391,-440.0,0.00019178,2]
[364960094,1749357040402,-440.0,0.00019178,2]
[364960096,1749357040413,-440.0,0.00019178,2]
[364960098,1749357040423,-440.0,0.00019178,2]
[364960100,1749357040433,-440.0,0.00019178,2]
[364960102,1749357040443,-441.37249762,0.00019178,2]
[364960104,1749357040453,-440.0,0.00019178,2]
[364960106,1749357040462,-439.81070319,0.00019178,2]
[364960108,1749357040472,-151.0,0.00019178,2]
[364960110,1749357040481,-182.007653,0.00019178,2]
[364960112,1749357040491,-440.0,0.00019178,2]
[364960114,1749357040500,-440.0,0.00019178,2]
[364960116,1749357040510,-440.0,0.00019178,2]
[364960117,1749357040519,-440.0,0.00019178,2]
[364960120,1749357040529,-442.09554885,0.00019178,2]
[364960122,1749357040540,-555.86694345,0.00019178,2]
[364960124,1749357040549,-440.0,0.00019178,2]
[364960126,1749357040559,-440.0,0.00019178,2]
[364960139,1749357040682,-431.68686059,0.00019178,2]
[364960141,1749357040692,-440.0,0.00019178,2]
[364960143,1749357040703,-440.0,0.00019178,2]
[364960145,1749357040713,-440.0,0.00019178,2]
[364960147,1749357040727,-430.78709941,0.00019178,2]
[364960149,1749357040737,-443.53399373,0.00019178,2]
[364960151,1749357040747,-445.17530772,0.00019178,2]
[364960153,1749357040756,-446.73036006,0.00019178,2]
[364960155,1749357040766,-443.92700298,0.00019178,2]
[364960157,1749357040776,-442.574967,0.00019178,2]
[364960159,1749357040786,-585.79,0.00019178,2]
[364960161,1749357040795,-441.608016,0.00019178,2]
[364960163,1749357040805,-450.66752023,0.00019178,2]
[364960165,1749357040815,-440.0,0.00019178,2]
[364960167,1749357040824,-441.4616001,0.00019178,2]
[364960169,1749357040833,-448.49033315,0.00019178,2]
[364960171,1749357040843,-440.0,0.00019178,2]
[364960173,1749357040853,-151.0,0.00019178,2]
[364960175,1749357040863,-151.0,0.00019178,2]
[364960177,1749357040872,-151.0,0.00019178,2]
[364960179,1749357040882,-446.11528057,0.00019178,2]
[364960181,1749357040891,-158.44112325,0.00019178,2]
[364960183,1749357040901,-152.279861,0.00019178,2]
[364960185,1749357040911,-440.0,0.00019178,2]
[364960187,1749357040920,-438.55443355,0.00019178,2]
[364960189,1749357040930,-440.0,0.00019178,2]
[364960191,1749357040940,-448.94578802,0.00019178,2]
[364960193,1749357040950,-422.16362459,0.00019178,2]
[364960195,1749357040960,-440.0,0.00019178,2]
[364960197,1749357040969,-448.28597181,0.00019178,2]
[364960199,1749357040979,-440.0,0.00019178,2]
[364960201,1749357040989,-440.0,0.00019178,2]
[364960203,1749357040999,-505.29659152,0.00019178,2]
[364960205,1749357041009,-440.0,0.00019178,2]
[364960207,1749357041019,-445.74139832,0.00019178,2]
[364960209,1749357041028,-440.0,0.00019178,2]
[364960211,1749357041038,-448.07546141,0.00019178,2]
[364960213,1749357041048,-447.12532888,0.00019178,2]
[364960215,1749357041057,-443.47154632,0.00019178,2]
[364960217,1749357041067,-343.53904797,0.00019178,2]
[364960219,1749357041076,-440.0,0.00019178,2]
[364960221,1749357041086,-440.0,0.00019178,2]
[364960223,1749357041095,-453.77999624,0.00019178,2]
[364960225,1749357041106,-449.34531246,0.00019178,2]
[364960227,1749357041118,-415.18260763,0.00019178,2]
[364960229,1749357041127,-465.8813759,0.00019178,2]
[364960231,1749357041137,-440.0,0.00019178,2]
[364960233,1749357041147,-460.96448847,0.00019178,2]
[364960235,1749357041157,-440.0,0.00019178,2]
[364960237,1749357041168,-443.56435929,0.00019178,2]
[364960239,1749357041177,-440.0,0.00019178,2]
[364960241,1749357041187,-442.59226078,0.00019178,2]
[364960243,1749357041196,-151.0,0.00019178,2]
[364960244,1749357041206,-151.0,0.00019178,2]
[364960245,1749357041216,-151.0,0.00019178,2]
[364960246,1749357041226,-151.0,0.00019178,2]
[364960247,1749357041236,-175.331364,0.00019178,2]
[364960248,1749357041245,-417.17203804,0.00019178,2]
[364960249,1749357041255,-368.79954602,0.00019178,2]
[364960250,1749357041265,-430.45970016,0.00019178,2]
[364960251,1749357041274,-440.0,0.00019178,2]
[364960252,1749357041284,-440.0,0.00019178,2]
[364960253,1749357041295,-440.0,0.00019178,2]
[364960254,1749357041305,-442.09296784,0.00019178,2]
[364960255,1749357041316,-440.0,0.00019178,2]
[364960256,1749357041326,-442.74555623,0.00019178,2]
[364960257,1749357041336,-440.0,0.00019178,2]
[364960258,1749357041346,-447.34279616,0.00019178,2]
[364960259,1749357041356,-440.0,0.00019178,2]
[364960260,1749357041367,-442.86663511,0.00019178,2]
[364960261,1749357041377,-235.877892,0.00019178,2]
[364960262,1749357041387,-440.0,0.00019178,2]
[364960263,1749357041397,-440.0,0.00019178,2]
[364960265,1749357041407,-431.77609341,0.00019178,2]
[364960267,1749357041416,-440.0,0.00019178,2]
[364960269,1749357041426,-443.22393717,0.00019178,2]
[364960271,1749357041435,-440.0,0.00019178,2]
[364960273,1749357041446,-500.0,0.00019178,2]
[364960275,1749357041456,-500.0,0.00019178,2]
[364960277,1749357041465,-525.36906418,0.00019178,2]
[364960279,1749357041475,-440.0,0.00019178,2]
[364960281,1749357041485,-445.61323591,0.00019178,2]
[364960283,1749357041494,-440.0,0.00019178,2]
[364960285,1749357041504,-500.0,0.00019178,2]
[364960287,1749357041513,-458.8600091,0.00019178,2]
[364960289,1749357041523,-1477.39,0.00019178,2]
[364960291,1749357041533,-433.4413578,0.00019178,2]
[364960293,1749357041544,-457.3990733,0.00019178,2]
[364960295,1749357041553,-440.0,0.00019178,2]
[364960297,1749357041563,-164.912573,0.00019178,2]
[364960299,1749357041572,-440.0,0.00019178,2]
[364960301,1749357041583,-448.03000323,0.00019178,2]
[364960303,1749357041593,-435.59845761,0.00019178,2]
[364960305,1749357041603,-440.0,0.00019178,2]
[364960307,1749357041612,-440.0,0.00019178,2]
[364960309,1749357041622,-442.97352999,0.00019178,2]
[364960311,1749357041631,-440.0,0.00019178,2]
[364960313,1749357041641,-1507.17,0.00019178,2]
[364960315,1749357041651,-556.4,0.00019178,2]
[364960317,1749357041660,-445.99351828,0.00019178,2]
[364960319,1749357041670,-440.0,0.00019178,2]
[364960321,1749357041681,-440.0,0.00019178,2]
[364960323,1749357041691,-440.0,0.00019178,2]
[364960325,1749357041701,-424.45264279,0.00019178,2]
[364960327,1749357041710,-454.2295239,0.00019178,2]
[364960329,1749357041720,-503.8,0.00019178,2]
[364960332,1749357041730,-425.0,0.00019178,2]
[364960334,1749357041741,-440.0,0.00019178,2]
[364960335,1749357041750,-473.37364858,0.00019178,2]
[364960337,1749357041760,-449.34366118,0.00019178,2]
[364960339,1749357041770,-440.0,0.00019178,2]
[364960342,1749357041780,-441.50088083,0.00019178,2]
[364960344,1749357041789,-441.56818863,0.00019178,2]
[364960345,1749357041799,-440.0,0.00019178,2]
[364960348,1749357041809,-440.0,0.00019178,2]
[364960350,1749357041818,-548.14394732,0.00019178,2]
[364960351,1749357041828,-447.25603995,0.00019178,2]
[364960354,1749357041838,-404.94085946,0.00019178,2]
[364960355,1749357041848,-440.0,0.00019178,2]
[364960358,1749357041857,-589.89,0.00019178,2]
[364960359,1749357041866,-440.0,0.00019178,2]
[364960362,1749357041876,-440.0,0.00019178,2]
[364960363,1749357041885,-443.378099,0.00019178,2]
[364960365,1749357041895,-443.378099,0.00019178,2]
[364960367,1749357041904,-446.567788,0.00019178,2]
[364960369,1749357041914,-443.378099,0.00019178,2]
[364960371,1749357041923,-443.378099,0.00019178,2]
[364960374,1749357041934,-452.58640451,0.00019178,2]
[364960376,1749357041944,-450.29749311,0.00019178,2]
[364960378,1749357041953,-443.378099,0.00019178,2]
[364960380,1749357041963,-443.378099,0.00019178,2]
[364960382,1749357041972,-440.0,0.00019178,2]
[364960383,1749357041981,-447.03855044,0.00019178,2]
[364960385,1749357041991,-443.378099,0.00019178,2]
[364960388,1749357042001,-443.378099,0.00019178,2]
[364960390,1749357042011,-443.378099,0.00019178,2]
[364960392,1749357042021,-443.378099,0.00019178,2]
[364960394,1749357042031,-443.378099,0.00019178,2]
[364960396,1749357042040,-401.26597458,0.00019178,2]
[364960398,1749357042049,-443.378099,0.00019178,2]
[364960400,1749357042059,-440.0,0.00019178,2]
[364960402,1749357042070,-442.13969194,0.00019178,2]
[364960404,1749357042080,-440.0,0.00019178,2]
[364960406,1749357042089,-440.0,0.00019178,2]
[364960408,1749357042099,-440.0,0.00019178,2]
[364960410,1749357042108,-440.0,0.00019178,2]
[364960412,1749357042119,-440.0,0.00019178,2]
[364960414,1749357042128,-470.38877777,0.00019178,2]
[364960416,1749357042139,-586.93,0.00019178,2]
[364960418,1749357042148,-433.22257676,0.00019178,2]
[364960420,1749357042158,-440.0,0.00019178,2]
[364960422,1749357042168,-440.0,0.00019178,2]
[364960424,1749357042178,-440.0,0.00019178,2]
[364960426,1749357042189,-418.81286783,0.00019178,2]
[364960428,1749357042200,-440.0,0.00019178,2]
[364960430,1749357042209,-440.0,0.00019178,2]
[364960432,1749357042219,-451.66090713,0.00019178,2]
[364960434,1749357042228,-417.66523011,0.00019178,2]
[364960436,1749357042237,-433.85526779,0.00019178,2]
[364960438,1749357042247,-440.0,0.00019178,2]
[364960440,1749357042256,-440.0,0.00019178,2]
[364960442,1749357042266,-440.0,0.00019178,2]
[364960444,1749357042276,-440.0,0.00019178,2]
[364960446,1749357042286,-151.414543,0.00019178,2]
[364960448,1749357042295,-431.90198824,0.00019178,2]
[364960450,1749357042305,-440.0,0.00019178,2]
[364960452,1749357042314,-440.0,0.00019178,2]
[364960454,1749357042325,-1039.1,0.00019178,2]
[364960456,1749357042335,-507.35531678,0.00019178,2]
[364960458,1749357042345,-440.0,0.00019178,2]
[364960460,1749357042354,-440.0,0.00019178,2]
[364960462,1749357042364,-440.0,0.00019178,2]
[364960464,1749357042373,-440.0,0.00019178,2]
[364960466,1749357042383,-442.21854261,0.00019178,2]
[364960468,1749357042393,-233.07991472,0.00019178,2]
[364960470,1749357042403,-440.0,0.00019178,2]
[364960472,1749357042413,-440.0,0.00019178,2]
[364960474,1749357042423,-440.0,0.00019178,2]
[364960476,1749357042432,-440.0,0.00019178,2]
[364960478,1749357042442,-440.0,0.00019178,2]
[364960480,1749357042451,-440.0,0.00019178,2]
[364960482,1749357042460,-440.0,0.00019178,2]
[364960484,1749357042470,-440.0,0.00019178,2]
[364960486,1749357042480,-440.0,0.00019178,2]
[364960488,1749357042489,-440.0,0.00019178,2]
[364960490,1749357042500,-449.88074614,0.00019178,2]
[364960492,1749357042510,-440.0,0.00019178,2]
[364960494,1749357042519,-440.0,0.00019178,2]
[364960496,1749357042529,-440.0,0.00019178,2]
[364960498,1749357042539,-153.875082,0.00019178,2]
[364960500,1749357042548,-440.0,0.00019178,2]
[364960502,1749357042558,-435.5154604,0.00019178,2]
[364960504,1749357042568,-151.993996,0.00019178,2]
[364960506,1749357042578,-662.36,0.00019178,2]
[364960508,1749357042587,-440.0,0.00019178,2]
[364960510,1749357042597,-440.0,0.00019178,2]
[364960512,1749357042606,-444.17138486,0.00019178,2]
[364960514,1749357042617,-440.0,0.00019178,2]
[364960516,1749357042628,-440.0,0.00019178,2]
[364960518,1749357042637,-440.0,0.00019178,2]
[364960520,1749357042646,-440.0,0.00019178,2]
[364960522,1749357042656,-440.0,0.00019178,2]
[364960524,1749357042667,-440.0,0.00019178,2]
[364960526,1749357042677,-436.3979563,0.00019178,2]
[364960528,1749357042687,-432.68950261,0.00019178,2]
[364960530,1749357042697,-442.34541584,0.00019178,2]
[364960532,1749357042707,-430.68829999,0.00019178,2]
[364960534,1749357042718,-440.0,0.00019178,2]
[364960536,1749357042737,-401.97879058,0.00019178,2]
[364960538,1749357042748,-440.0,0.00019178,2]
[364960540,1749357042757,-442.41120005,0.00019178,2]
[364960542,1749357042767,-430.55646137,0.00019178,2]
[364960544,1749357042776,-440.0,0.00019178,2]
[364960546,1749357042786,-214.77631959,0.00019178,2]
[364960548,1749357042795,-440.0,0.00019178,2]
[364960550,1749357042805,-440.0,0.00019178,2]
[364960552,1749357042815,-440.0,0.00019178,2]
[364960554,1749357042825,-448.25436603,0.00019178,2]
[364960556,1749357042836,-583.1,0.00019178,2]
[364960559,1749357042845,-440.0,0.00019178,2]
[364960560,1749357042856,-433.47152448,0.00019178,2]
[364960562,1749357042866,-439.3411113,0.00019178,2]
[364960564,1749357042875,-440.0,0.00019178,2]
[364960566,1749357042885,-440.0,0.00019178,2]
[364960568,1749357042894,-554.78959561,0.00019178,2]
[364960571,1749357042904,-523.24,0.00019178,2]
[364960572,1749357042916,-440.0,0.00019178,2]
[364960575,1749357042925,-523.24,0.00019178,2]
[364960577,1749357042935,-523.24,0.00019178,2]
[364960578,1749357042944,-523.24,0.00019178,2]
[364960580,1749357042954,-523.24,0.00019178,2]
[364960583,1749357042964,-523.24,0.00019178,2]
[364960586,1749357042974,-434.03705247,0.00019178,2]
[364960588,1749357042983,-523.24,0.00019178,2]
[364960590,1749357042993,-523.24,0.00019178,2]
[364960592,1749357043003,-440.0,0.00019178,2]
[364960594,1749357043013,-400.0,0.00019178,2]
[364960597,1749357043024,-523.24,0.00019178,2]
[364960599,1749357043034,-523.24,0.00019178,2]
[364960601,1749357043044,-523.24,0.00019178,2]
[364960602,1749357043054,-523.24,0.00019178,2]
[364960605,1749357043064,-523.24,0.00019178,2]
[364960607,1749357043074,-523.24,0.00019178,2]
[364960609,1749357043084,-523.24,0.00019178,2]
[364960611,1749357043094,-523.24,0.00019178,2]
[364960613,1749357043104,-299.66974089,0.00019178,2]
[364960615,1749357043114,-431.06634741,0.00019178,2]
[364960617,1749357043124,-440.0,0.00019178,2]
[364960619,1749357043133,-440.0,0.00019178,2]